bitfinex/quotes_BTCUSD_20251221
["timestamp","ask_amount","ask_price","bid_price","bid_amount"]
[1766299112841,0.13703913,88268.0,88257.0,0.12771]
[1766299115393,0.01132926,88267.0,88257.0,0.12771]
[1766299118778,0.01132926,88267.0,88258.0,0.03404701]
[1766299120034,0.13703913,88268.0,88258.0,0.03404701]
[1766299120446,0.01132926,88267.0,88258.0,0.03404701]
[1766299120645,0.13703913,88268.0,88258.0,0.03404701]
[1766299121932,0.01132926,88267.0,88258.0,0.03404701]
[1766299130105,0.01132939,88266.0,88258.0,0.03404701]
[1766299130269,0.01132951,88265.0,88258.0,0.03404701]
[1766299130486,0.13275977,88263.0,88258.0,0.03349701]
[1766299131049,0.13275977,88263.0,88257.0,0.03972701]
[1766299131450,0.01133003,88261.0,88257.0,0.03972701]
[1766299131590,0.0113299,88262.0,88257.0,0.03972701]
[1766299131790,0.01133003,88261.0,88257.0,0.03972701]
[1766299132019,0.1327599,88262.0,88257.0,0.03972701]
[1766299132191,0.12143,88262.0,88257.0,0.03972701]
[1766299134425,0.12088,88262.0,88257.0,0.03972701]
[1766299134624,0.01132926,88267.0,88257.0,0.03972701]
[1766299134832,0.01132939,88266.0,88257.0,0.00568]
[1766299135212,0.01132939,88266.0,88258.0,0.03404701]
[1766299136093,0.01132951,88265.0,88258.0,0.03404701]
[1766299136293,0.01132939,88266.0,88258.0,0.03404701]
[1766299137356,0.01132926,88267.0,88259.0,0.1182]
[1766299137756,0.01132939,88266.0,88259.0,0.1182]
[1766299138138,0.01132926,88267.0,88260.0,0.01132926]
[1766299138566,0.01132939,88266.0,88260.0,0.01132926]
[1766299139483,0.01132951,88265.0,88260.0,0.01132926]
[1766299139726,0.01132939,88266.0,88260.0,0.01132926]
[1766299140618,0.01132939,88266.0,88259.0,0.1182]
[1766299141864,0.01132951,88265.0,88259.0,0.1182]
[1766299142061,0.12143,88262.0,88259.0,0.00568]
[1766299142284,0.23607,88260.0,88259.0,0.00568]
[1766299145222,0.12143,88260.0,88259.0,0.00568]
[1766299145413,0.12088,88260.0,88259.0,0.00568]
[1766299158310,0.0113299,88262.0,88249.0,0.04107213]
[1766299158311,0.0113308,88255.0,88249.0,0.04107213]
[1766299158513,0.0113308,88255.0,88249.0,0.00024712]
[1766299158514,0.05665714,88251.0,88249.0,0.00024712]
[1766299158660,0.06798758,88252.0,88250.0,0.00513]
[1766299158863,0.06798758,88252.0,88249.0,0.00024712]
[1766299158864,0.06798758,88252.0,88251.0,0.00568]
[1766299159412,0.01133118,88252.0,88251.0,0.00568]
[1766299160112,0.04538011,88253.0,88251.0,0.00568]
[1766299160284,0.01133105,88253.0,88251.0,0.00568]
[1766299160895,0.04537999,88254.0,88251.0,0.00568]
[1766299162173,0.03404906,88254.0,88251.0,0.00568]
[1766299162380,0.04537999,88254.0,88251.0,0.00568]
[1766299162845,0.03404906,88254.0,88251.0,0.00568]
[1766299164113,0.04537999,88254.0,88251.0,0.00568]
[1766299164743,0.1356408,88255.0,88250.0,0.00568]
[1766299164960,0.03404906,88253.0,88250.0,0.00568]
[1766299165716,0.03404906,88253.0,88249.0,0.00568]
[1766299166457,0.03404906,88253.0,88249.0,0.00252]
[1766299167244,0.03404906,88253.0,88241.0,0.11475]
[1766299167447,0.03404906,88253.0,88244.0,0.00568]
[1766299173331,0.03404906,88253.0,88243.0,0.17104]
[1766299173629,0.03404906,88253.0,88245.0,0.00568]
[1766299173828,0.04538011,88253.0,88245.0,0.00568]
[1766299174034,0.03404906,88253.0,88245.0,0.00568]
[1766299174744,0.04538011,88253.0,88245.0,0.00568]
[1766299175101,0.03404906,88253.0,88245.0,0.00568]
[1766299178401,0.01133118,88252.0,88245.0,0.00568]
[1766299178604,0.04538011,88253.0,88245.0,0.00568]
[1766299179301,0.01133105,88253.0,88245.0,0.00568]
[1766299179532,0.01133118,88252.0,88245.0,0.00568]
[1766299179739,0.01133105,88253.0,88245.0,0.00568]
[1766299179943,0.04537999,88254.0,88245.0,0.00568]
[1766299180473,0.04537999,88254.0,88243.0,0.17104]
[1766299180640,0.03404906,88254.0,88246.0,0.00568]
[1766299181310,0.04537999,88254.0,88246.0,0.00568]
[1766299182069,0.03404906,88254.0,88246.0,0.00568]
[1766299182502,0.04537999,88254.0,88246.0,0.00568]
[1766299182658,0.01133105,88253.0,88246.0,0.00568]
[1766299182972,0.04537999,88254.0,88246.0,0.00568]
[1766299183373,0.01133105,88253.0,88247.0,0.00568]
[1766299183620,0.01133118,88252.0,88247.0,0.00568]
[1766299184159,0.01133131,88251.0,88247.0,0.00568]
[1766299184353,0.01133131,88251.0,88243.0,0.17109674]
[1766299184577,0.0113317,88248.0,88244.0,0.00568]
[1766299186313,0.01133285,88239.0,88231.0,0.10211]
[1766299186456,0.01133349,88234.0,88231.0,0.00568]
[1766299186659,0.01133337,88235.0,88231.0,0.00575308]
[1766299186861,0.01133349,88234.0,88231.0,7.308e-05]
[1766299187079,0.03405756,88234.0,88232.0,0.00568]
[1766299187289,0.04539105,88234.0,88231.0,7.308e-05]
[1766299187512,0.03405756,88234.0,88231.0,7.308e-05]
[1766299188117,0.04539105,88234.0,88231.0,7.308e-05]
[1766299188278,0.01133414,88229.0,88225.0,0.10222]
[1766299188482,0.01133388,88231.0,88226.0,0.00568]
[1766299188720,0.01133414,88229.0,88226.0,0.00568]
[1766299188900,0.01133375,88232.0,88226.0,0.00568]
[1766299189101,0.01133362,88233.0,88226.0,0.00568]
[1766299189427,0.1133,88235.0,88226.0,0.00568]
[1766299189936,0.03350756,88234.0,88226.0,0.00568]
[1766299191506,0.03350756,88234.0,88226.0,0.11903]
[1766299191910,0.03350756,88234.0,88233.0,0.00024721]
[1766299199743,0.03350756,88234.0,88226.0,0.00568]
[1766299199978,0.00055,88226.0,88225.0,5.276e-05]
[1766299200292,0.00055,88226.0,88222.0,0.0004]
[1766299200293,0.03350756,88234.0,88223.0,0.00608]
[1766299200521,0.00010744,88234.0,88227.0,0.08160721]
[1766299200727,0.00010744,88234.0,88227.0,0.07552721]
[1766299200911,0.03416794,88234.0,88227.0,0.07552721]
[1766299201447,0.03416794,88234.0,88227.0,0.04248406]
[1766299201660,0.1133,88237.0,88227.0,0.04248406]
[1766299201661,0.01133234,88243.0,88228.0,0.1286]
[1766299201865,0.01133195,88246.0,88227.0,0.04248406]
[1766299201866,0.01133195,88246.0,88237.0,0.24195]
[1766299201867,0.01701208,88245.0,88237.0,0.24195]
[1766299202098,0.03405602,88244.0,88237.0,0.24195]
[1766299202316,0.04538823,88244.0,88237.0,0.24195]
[1766299202518,0.01133234,88243.0,88237.0,0.1286]
[1766299202940,0.01133247,88242.0,88237.0,0.1286]
[1766299204464,0.0113326,88241.0,88237.0,0.1286]
[1766299204675,0.0113326,88241.0,88233.0,0.11335]
[1766299205102,0.01133272,88240.0,88228.0,0.0113326]
[1766299205261,0.23958,88236.0,88228.0,0.01144004]
[1766299205460,0.25091324,88236.0,88228.0,0.00010744]
[1766299206024,0.01133337,88235.0,88228.0,0.00010744]
[1766299206207,0.23958,88236.0,88228.0,0.00010744]
[1766299206455,0.01133272,88239.0,88236.0,0.00055]
[1766299206932,0.01133272,88239.0,88230.0,0.1307]
[1766299207131,0.01133272,88239.0,88231.0,0.1307]
[1766299207312,0.01133272,88239.0,88232.0,0.25015]
[1766299208198,0.00568,88240.0,88232.0,0.25015]
[1766299211074,0.11898,88242.0,88232.0,0.25015]
[1766299211260,0.03405783,88243.0,88234.0,0.25015]
[1766299211261,0.00568,88241.0,88234.0,0.25015]
[1766299211465,0.00568,88245.0,88238.0,0.25015]
[1766299211661,0.03973602,88245.0,88238.0,0.1307]
[1766299211839,0.03973602,88245.0,88239.0,0.25015]
[1766299211840,0.00568,88245.0,88239.0,0.25015]
[1766299236010,0.00568,88245.0,88239.0,0.1307]
[1766299238023,0.00568,88245.0,88234.0,0.12378]
[1766299238218,0.00568,88245.0,88234.0,0.2548]
[1766299238424,0.00568,88245.0,88232.0,0.01701375]
[1766299238945,0.00568,88245.0,88233.0,0.2548]
[1766299239121,0.00568,88245.0,88233.0,0.13102]
[1766299239302,0.00568,88245.0,88234.0,0.2548]
[1766299239530,0.00568,88245.0,88235.0,0.12378]
[1766299248164,0.00568,88245.0,88234.0,0.13102]
[1766299253210,0.00568,88245.0,88235.0,0.26613337]
[1766299253503,0.03405567,88244.0,88235.0,0.26613337]
[1766299254252,0.03405567,88244.0,88236.0,0.01133324]
[1766299254699,0.03405567,88244.0,88235.0,0.26613337]
[1766299255097,0.03405567,88244.0,88235.0,0.01133337]
[1766299255305,0.03405567,88244.0,88236.0,0.2548]
[1766299260497,0.00055,88236.0,88228.0,0.00010744]
[1766299260702,0.29354163,88242.0,88229.0,0.00568]
[1766299260866,0.26903247,88242.0,88229.0,0.00568]
[1766299261255,0.03405733,88241.0,88229.0,0.00568]
[1766299264604,0.03405733,88241.0,88233.0,0.13102]
[1766299264808,0.03405733,88241.0,88234.0,0.12378]
[1766299265006,0.03405733,88241.0,88234.0,0.25257]
[1766299265799,0.03405733,88241.0,88234.0,0.12879]
[1766299280061,0.03405733,88241.0,88233.0,0.00568]
[1766299280480,0.03405733,88241.0,88230.0,0.31699153]
[1766299280599,0.11872,88238.0,88228.0,0.00010744]
[1766299280792,0.24175,88237.0,88231.0,0.00568]
[1766299281434,0.24175,88237.0,88225.0,0.00592723]
[1766299281435,0.00055,88231.0,88225.0,0.00592723]
[1766299281664,0.00065748,88231.0,88225.0,0.00592723]
[1766299281876,0.00010748,88231.0,88225.0,0.00592723]
[1766299284152,0.00010748,88231.0,88225.0,0.00024723]
[1766299284153,0.23792,88230.0,88225.0,0.00024723]
[1766299284400,0.24384723,88230.0,88224.0,0.00568]
[1766299285234,0.23792,88229.0,88222.0,0.00608]
[1766299285482,0.00592723,88230.0,88222.0,0.00608]
[1766299285697,0.23792,88229.0,88222.0,0.00608]
[1766299285894,0.12535,88228.0,88222.0,0.00608]
[1766299286096,0.23792,88228.0,88222.0,0.00608]
[1766299287963,0.23792,88228.0,88222.0,0.0004]
[1766299295515,0.00592723,88230.0,88228.0,0.00055]
[1766299295727,0.00010748,88231.0,88228.0,0.00055]
[1766299295935,0.00010748,88231.0,88222.0,0.0004]
[1766299296283,0.00010748,88231.0,88223.0,0.11812]
[1766299306076,0.25000748,88231.0,88222.0,0.0004]
[1766299306803,0.13028748,88231.0,88222.0,0.0004]
[1766299311897,0.13028748,88231.0,88222.0,0.11852]
[1766299329222,0.00010748,88231.0,88222.0,0.11852]
[1766299341602,0.12533603,88235.0,88222.0,0.11852]
[1766299341813,0.25452603,88235.0,88222.0,0.11862748]
[1766299344654,0.00608,88238.0,88225.0,0.12834]
[1766299344832,0.00568,88242.0,88229.0,0.12834]
[1766299345259,0.13574,88242.0,88229.0,0.12834]
[1766299345467,0.02450919,88241.0,88229.0,0.12834]
[1766299346759,0.02450919,88241.0,88230.0,0.00568]
[1766299349261,0.2548,88242.0,88230.0,0.00568]
[1766299349802,0.24912,88241.0,88230.0,0.00568]
[1766299353373,0.24912,88241.0,88230.0,0.32266452]
[1766299356955,0.07367486,88242.0,88230.0,0.00568]
[1766299357092,0.31698452,88240.0,88230.0,0.00513]
[1766299357297,0.25236,88239.0,88230.0,0.00513]
[1766299357931,0.01133298,88238.0,88230.0,0.00513]
[1766299358138,0.25236,88237.0,88230.0,0.00513]
[1766299361190,0.01133298,88238.0,88226.0,0.00568]
[1766299361396,0.01133311,88237.0,88226.0,0.00568]
[1766299361793,0.25236,88236.0,88226.0,0.00568]
[1766299362149,0.25236,88235.0,88226.0,0.00568]
[1766299363189,0.11859,88235.0,88226.0,0.00568]
[1766299363347,0.25236,88235.0,88226.0,0.00568]
[1766299364507,0.25236,88235.0,88220.0,0.32871981]
[1766299364508,0.25236,88230.0,88220.0,0.0004]
[1766299364708,0.31698452,88231.0,88220.0,0.0004]
[1766299364709,0.25236,88227.0,88220.0,0.0004]
[1766299365301,0.00553,88226.0,88220.0,0.0004]
[1766299366447,0.00332853,88226.0,88221.0,0.12001]
[1766299369259,0.00332853,88226.0,88220.0,0.1323]
[1766299375460,0.00332853,88226.0,88220.0,0.14363529]
[1766299376057,0.00332853,88226.0,88220.0,0.1323]
[1766299384673,0.00336914,88226.0,88220.0,0.1323]
[1766299412637,0.00336914,88226.0,88220.0,0.0004]
[1766299415946,4.061e-05,88226.0,88220.0,0.0004]
[1766299419556,0.24061,88225.0,88218.0,0.0004]
[1766299423452,0.12792,88225.0,88218.0,0.0004]
[1766299425035,0.12792,88225.0,88218.0,0.01173555]
[1766299425238,0.12752,88225.0,88218.0,0.0004]
[1766299425437,0.12752,88225.0,88218.0,0.01173555]
[1766299425961,0.12752,88225.0,88218.0,0.0004]
[1766299428822,0.12752,88225.0,88218.0,0.01173555]
[1766299429167,0.12752,88225.0,88218.0,0.0004]
[1766299430446,0.12752,88225.0,88218.0,0.01173555]
[1766299430970,0.12752,88225.0,88218.0,0.0004]
[1766299449958,0.12297,88224.0,88217.0,0.00064727]
[1766299450196,0.25443,88223.0,88218.0,0.00568]
[1766299452094,0.13146,88223.0,88218.0,0.00568]
[1766299465139,4.061e-05,88226.0,88218.0,0.00568]
[1766299486388,4.061e-05,88226.0,88218.0,0.01701555]
[1766299486620,4.061e-05,88226.0,88218.0,0.00568]
[1766299486838,4.061e-05,88226.0,88220.0,0.11319]
[1766299501009,4.061e-05,88226.0,88220.0,0.12452529]
[1766299501215,4.061e-05,88226.0,88220.0,0.11319]
[1766299501558,4.061e-05,88226.0,88220.0,0.12452529]
[1766299501780,4.061e-05,88226.0,88220.0,0.11319]
[1766299501990,4.061e-05,88226.0,88220.0,0.24453]
[1766299502165,4.061e-05,88226.0,88220.0,0.25586529]
[1766299502368,4.061e-05,88226.0,88220.0,0.24453]
[1766299503550,4.061e-05,88226.0,88220.0,0.25586529]
[1766299503776,4.061e-05,88226.0,88220.0,0.24453]
[1766299503956,4.061e-05,88226.0,88220.0,0.25586529]
[1766299504405,4.061e-05,88226.0,88220.0,0.24453]
[1766299504660,4.061e-05,88226.0,88221.0,0.01133516]
[1766299504860,0.08160721,88239.0,88225.0,0.24947]
[1766299505023,0.00568,88238.0,88225.0,0.01133465]
[1766299505196,0.03406015,88236.0,88227.0,0.11906]
[1766299505802,0.03406015,88236.0,88227.0,0.11851]
[1766299506120,0.03406015,88236.0,88226.0,0.13041]
[1766299508037,0.15798015,88236.0,88226.0,0.13041]
[1766299510323,0.15798015,88236.0,88226.0,0.14174452]
[1766299510524,0.15798015,88236.0,88226.0,0.13041]
[1766299522818,0.15798015,88236.0,88226.0,0.14174452]
[1766299523632,0.15798015,88236.0,88226.0,0.13041]
[1766299525059,0.27731015,88236.0,88226.0,0.13041]
[1766299526461,0.27731015,88236.0,88224.0,0.01701478]
[1766299528740,0.15798015,88236.0,88225.0,0.25172465]
[1766299530047,0.15798015,88236.0,88225.0,0.24039]
[1766299534177,0.27731015,88236.0,88225.0,0.24039]
[1766299538764,0.27731015,88236.0,88226.0,0.01133452]
[1766299539493,0.27731015,88236.0,88225.0,0.24039]
[1766299539708,0.27731015,88236.0,88227.0,0.01133439]
[1766299539906,0.24325,88236.0,88225.0,0.25172465]
[1766299540554,0.24325,88236.0,88225.0,0.24039]
[1766299541347,0.24325,88236.0,88226.0,0.01133452]
[1766299542182,0.27731015,88236.0,88226.0,0.01133452]
[1766299542877,0.27731015,88236.0,88227.0,0.01133439]
[1766299543295,0.27731015,88236.0,88226.0,0.01133452]
[1766299543726,0.27731015,88236.0,88225.0,0.25172465]
[1766299543903,0.27731015,88236.0,88225.0,0.13702465]
[1766299544106,0.24325,88236.0,88225.0,0.13702465]
[1766299544482,0.27731015,88236.0,88225.0,0.13702465]
[1766299544684,0.24325,88236.0,88225.0,0.13702465]
[1766299544885,0.27731015,88236.0,88226.0,0.01133452]
[1766299545255,0.24325,88236.0,88225.0,0.13702465]
[1766299545460,0.27731015,88236.0,88225.0,0.13702465]
[1766299545673,0.24325,88236.0,88225.0,0.13702465]
[1766299545978,0.27731015,88236.0,88225.0,0.13702465]
[1766299546191,0.24325,88236.0,88225.0,0.13702465]
[1766299546537,0.27731015,88236.0,88225.0,0.13702465]
[1766299546977,0.27731015,88236.0,88226.0,0.01133452]
[1766299547481,0.27731015,88236.0,88225.0,0.13702465]
[1766299548321,0.24325,88236.0,88225.0,0.13702465]
[1766299548522,0.27731015,88236.0,88225.0,0.13702465]
[1766299548720,0.24325,88236.0,88225.0,0.13702465]
[1766299549350,0.24325,88236.0,88225.0,0.12569]
[1766299551258,0.27731015,88236.0,88225.0,0.12569]
[1766299553318,0.24325,88236.0,88225.0,0.12569]
[1766299553448,0.27731015,88236.0,88225.0,0.12569]
[1766299553930,0.27482495,88236.0,88225.0,0.12569]
[1766299554304,0.27396483,88236.0,88225.0,0.12569]
[1766299554757,0.23990468,88236.0,88225.0,0.12569]
[1766299554964,0.27396483,88236.0,88225.0,0.13702465]
[1766299555308,4.68e-06,88239.0,88231.0,0.01133388]
[1766299555588,0.02451734,88246.0,88240.0,0.11379]
[1766299555796,0.05,88247.0,88237.0,0.32269427]
[1766299555993,0.05,88247.0,88237.0,0.01701311]
[1766299556334,0.05,88247.0,88238.0,0.21648]
[1766299559534,0.05,88247.0,88237.0,0.01701311]
[1766299559754,0.00568,88251.0,88242.0,0.05351]
[1766299561338,0.00568,88251.0,88242.0,0.1673]
[1766299566281,0.29947977,88263.0,88247.0,0.00468]
[1766299566482,0.01133003,88261.0,88248.0,0.11864]
[1766299566688,0.17499105,88262.0,88248.0,0.11864]
[1766299567122,0.29381105,88262.0,88248.0,0.11864]
[1766299567630,0.01133003,88261.0,88248.0,0.11864]
[1766299568181,0.00816003,88261.0,88248.0,0.11864]
[1766299568847,0.01133003,88261.0,88248.0,0.11864]
[1766299569029,0.01133016,88260.0,88248.0,0.11864]
[1766299569235,0.01133028,88259.0,88248.0,0.11864]
[1766299569778,0.01133028,88258.0,88248.0,0.11864]
[1766299577530,0.02266069,88258.0,88248.0,0.11864]
[1766299577891,0.01133054,88257.0,88248.0,0.11864]
[1766299578091,0.01133041,88258.0,88248.0,0.11864]
[1766299578288,0.02266069,88257.0,88248.0,0.11809]
[1766299583108,0.03399123,88257.0,88248.0,0.11809]
[1766299583536,0.01133054,88257.0,88248.0,0.00468]
[1766299583735,0.04538182,88256.0,88244.0,0.11396]
[1766299583942,0.01133144,88250.0,88244.0,0.11396]
[1766299584147,0.01133131,88251.0,88244.0,0.11396]
[1766299584359,0.14187195,88246.0,88245.0,0.00568]
[1766299584558,0.13054,88244.0,88232.0,0.00764]
[1766299584759,0.13054,88244.0,88233.0,0.00568]
[1766299585712,0.13054,88244.0,88233.0,0.12633]
[1766299586249,0.12999,88244.0,88234.0,0.12065]
[1766299586482,0.03405493,88247.0,88234.0,0.13497]
[1766299586640,0.03405493,88247.0,88234.0,0.12065]
[1766299586844,0.03405493,88247.0,88236.0,0.12065]
[1766299590421,0.03405493,88247.0,88237.0,0.0149]
[1766299590717,0.03405493,88247.0,88238.0,0.14123]
[1766299593066,0.13054,88250.0,88238.0,0.14123]
[1766299593282,0.03405493,88249.0,88238.0,0.14123]
[1766299595423,0.03405493,88249.0,88240.0,0.01133272]
[1766299595600,0.03405493,88249.0,88239.0,0.43211036]
[1766299595796,0.03405493,88249.0,88240.0,0.11521]
[1766299596019,0.03405493,88249.0,88241.0,0.1265426]
[1766299596188,0.03405493,88249.0,88243.0,0.01133234]
[1766299596530,0.03405493,88249.0,88241.0,0.11521]
[1766299596744,0.03405493,88249.0,88241.0,0.1265426]
[1766299596891,0.03405493,88249.0,88241.0,0.11521]
[1766299599294,0.03405493,88249.0,88241.0,0.1265426]
[1766299600409,0.03405493,88249.0,88242.0,0.14292247]
[1766299600803,0.03405493,88249.0,88242.0,0.13159]
[1766299614907,0.03405493,88249.0,88242.0,0.14292247]
[1766299615836,0.03405493,88249.0,88242.0,0.13159]
[1766299618154,0.03405493,88249.0,88242.0,0.01638]
[1766299631546,0.00055,88242.0,88240.0,0.00568]
[1766299631779,0.03405493,88249.0,88240.0,0.00568]
[1766299632091,0.26035118,88252.0,88240.0,0.00568]
[1766299632283,0.24902,88250.0,88240.0,0.00568]
[1766299632792,0.13414,88249.0,88240.0,0.00568]
[1766299633019,0.24902,88247.0,88240.0,0.0019572]
[1766299633543,0.26857,88247.0,88240.0,0.0019572]
[1766299644283,0.13414,88247.0,88240.0,0.0019572]
[1766299645299,0.13414,88247.0,88239.0,0.00568]
[1766299645523,0.14547311,88247.0,88239.0,0.00568]
[1766299655459,0.14492311,88247.0,88239.0,0.00568]
[1766299666186,0.13359,88247.0,88239.0,0.00568]
[1766299691606,0.24829,88247.0,88239.0,0.00568]
[1766299696116,0.01133311,88249.0,88239.0,0.00568]
[1766299696293,0.01133311,88249.0,88240.0,0.02229]
[1766299696472,0.25377311,88249.0,88239.0,0.00568]
[1766299714597,0.25377311,88249.0,88236.0,0.12298]
[1766299715224,0.25377311,88249.0,88236.0,0.13431324]
[1766299715425,0.25377311,88249.0,88236.0,0.12298]
[1766299715799,0.25377311,88249.0,88236.0,0.13431324]
[1766299716272,0.25377311,88249.0,88236.0,0.12298]
[1766299716683,0.25377311,88249.0,88236.0,0.13431324]
[1766299717485,0.25377311,88249.0,88239.0,0.31691556]
[1766299717686,0.25377311,88249.0,88239.0,0.32259556]
[1766299722972,0.25377311,88249.0,88239.0,0.00568]
[1766299727079,0.24244,88249.0,88239.0,0.00568]
[1766299727278,0.03405493,88248.0,88239.0,0.00568]
[1766299727973,0.16164493,88248.0,88239.0,0.00568]
[1766299728307,0.12759,88248.0,88239.0,0.00568]
[1766299728712,0.03405493,88247.0,88239.0,0.00568]
[1766299744241,0.03405493,88247.0,88236.0,0.12298]
[1766299744436,0.03405493,88247.0,88237.0,0.00568]
[1766299757730,0.25365,88246.0,88237.0,0.00568]
[1766299757889,0.13606,88245.0,88237.0,0.00568]
[1766299764481,0.13606,88245.0,88230.0,0.38493417]
[1766299764482,0.12348,88222.0,88210.0,0.0004]
[1766299764694,0.01133529,88220.0,88210.0,0.0004]
[1766299764903,0.12348,88213.0,88210.0,0.00044061]
[1766299765787,0.01143799,88212.0,88210.0,0.00044061]
[1766299767564,0.01088799,88212.0,88210.0,0.00044061]
[1766299768644,0.01088799,88212.0,88206.0,0.13311]
[1766299768845,0.00568,88215.0,88206.0,0.14444709]
[1766299769124,0.03406626,88211.0,88206.0,0.14444709]
[1766299769346,0.00568,88215.0,88206.0,0.14444709]
[1766299769347,0.00568,88215.0,88207.0,0.13311]
[1766299769553,0.03406626,88214.0,88207.0,0.13311]
[1766299770592,0.03406626,88214.0,88209.0,0.0002473]
[1766299779742,0.03406626,88214.0,88209.0,3e-07]
[1766299781444,0.00568,88215.0,88209.0,0.1341303]
[1766299786224,0.005433,88215.0,88209.0,0.1341303]
[1766299793316,0.005433,88215.0,88179.0,0.01134056]
[1766299793318,0.01133735,88204.0,88179.0,0.01134056]
[1766299793517,0.20557494,88192.0,88182.0,0.00568]
[1766299793722,0.13079902,88191.0,88183.0,0.00075898]
[1766299793925,0.01133928,88189.0,88183.0,0.00075898]
[1766299794453,0.20557494,88192.0,88183.0,0.00075898]
[1766299794663,0.20557494,88192.0,88189.0,0.00055]
[1766299794897,0.20557494,88192.0,88183.0,0.00075898]
[1766299795294,0.13305,88193.0,88183.0,0.00075898]
[1766299795570,0.07371015,88197.0,88184.0,0.24932]
[1766299795571,0.01133838,88196.0,88184.0,0.24932]
[1766299795780,0.01701825,88197.0,88184.0,0.24932]
[1766299795983,0.12514,88197.0,88184.0,0.24932]
[1766299796193,0.13647825,88197.0,88184.0,0.24932]
[1766299796404,0.01133838,88196.0,88184.0,0.24932]
[1766299796624,0.13647825,88197.0,88184.0,0.24932]
[1766299796846,0.12514,88197.0,88184.0,0.24932]
[1766299798123,0.13647825,88197.0,88184.0,0.24932]
[1766299798701,0.12514,88197.0,88184.0,0.24932]
[1766299799799,0.12514,88197.0,88185.0,0.00568]
[1766299800102,0.12514,88197.0,88196.0,0.0004019]
[1766299801672,0.18183127,88197.0,88196.0,0.0004019]
[1766299802000,0.12514,88197.0,88196.0,0.0004019]
[1766299802296,0.03407729,88199.0,88196.0,0.0004019]
[1766299802522,0.00568,88198.0,88186.0,0.24932]
[1766299803985,0.11946,88197.0,88186.0,0.24932]
[1766299804733,0.11946,88197.0,88186.0,0.13413]
[1766299804734,0.16166825,88197.0,88186.0,0.13413]
[1766299804936,0.00568,88198.0,88197.0,0.00055]
[1766299805515,0.00568,88198.0,88186.0,0.26707]
[1766299805727,0.00568,88198.0,88186.0,0.11768]
[1766299805940,0.00568,88198.0,88187.0,0.14939]
[1766299807049,0.11966,88198.0,88187.0,0.14939]
[1766299807246,0.01133825,88197.0,88187.0,0.14939]
[1766299807447,0.01133838,88196.0,88187.0,0.14939]
[1766299807659,0.01133851,88195.0,88187.0,0.14939]
[1766299808082,0.01133851,88195.0,88194.0,0.00046373]
[1766299808414,0.01133838,88196.0,88194.0,0.00046373]
[1766299808717,0.12531825,88197.0,88183.0,0.00075898]
[1766299808718,0.01133966,88186.0,88183.0,0.00075898]
[1766299808875,0.01133966,88186.0,88184.0,0.00568]
[1766299809078,0.01133953,88187.0,88184.0,0.00568]
[1766299809305,0.11398,88190.0,88184.0,0.00568]
[1766299810582,0.26431,88190.0,88184.0,0.00568]
[1766299811255,0.25887,88189.0,88184.0,0.00568]
[1766299811570,0.11398,88188.0,88183.0,0.00568]
[1766299811749,0.11398,88188.0,88183.0,0.00572464]
[1766299812095,0.13353,88189.0,88188.0,0.00055]
[1766299812744,0.13353,88189.0,88183.0,0.00572464]
[1766299815869,0.13353,88189.0,88174.0,0.06844691]
[1766299815870,0.11398,88186.0,88182.0,4.64e-06]
[1766299816040,0.11398,88184.0,88182.0,4.64e-06]
[1766299816420,0.11343,88184.0,88182.0,4.64e-06]
[1766299816601,0.12489,88185.0,88182.0,4.64e-06]
[1766299817212,0.12544,88191.0,88182.0,4.64e-06]
[1766299818144,0.13677902,88191.0,88182.0,4.64e-06]
[1766299818588,0.25075902,88191.0,88182.0,4.64e-06]
[1766299818970,0.01133915,88190.0,88182.0,4.64e-06]
[1766299819150,0.01133915,88190.0,88186.0,0.0002512]
[1766299819151,0.12531915,88190.0,88186.0,0.0002512]
[1766299819354,0.12531915,88190.0,88186.0,2e-07]
[1766299819786,0.11398,88190.0,88186.0,2e-07]
[1766299820166,0.12531915,88190.0,88186.0,2e-07]
[1766299821296,0.11398,88190.0,88186.0,2e-07]
[1766299822450,0.12531915,88190.0,88186.0,2e-07]
[1766299822924,0.11398,88189.0,88186.0,2e-07]
[1766299849099,0.11289,88188.0,88186.0,2e-07]
[1766299849435,0.1281727,88188.0,88186.0,2e-07]
[1766299849669,0.11289,88188.0,88186.0,2e-07]
[1766299852652,0.112639,88188.0,88186.0,2e-07]
[1766299867410,0.14073,88189.0,88186.0,2e-07]
[1766299867608,0.14018,88189.0,88186.0,2e-07]
[1766299890946,0.26361,88189.0,88186.0,2e-07]
[1766299912225,0.00568,88196.0,88186.0,2e-07]
[1766299912427,0.01134031,88193.0,88186.0,2e-07]
[1766299913194,5.48875501,88185.0,88184.0,0.0680395]
[1766299913418,5.48624482,88185.0,88184.0,0.1814195]
[1766299913617,3.0477355,88185.0,88184.0,0.0680395]
[1766299913828,2.66117031,88185.0,88184.0,0.1134395]
[1766299914005,2.21230335,88185.0,88184.0,0.1134395]
[1766299914187,2.00386131,88185.0,88184.0,0.1134395]
[1766299919487,2.00386131,88185.0,88184.0,0.05673992]
[1766299921287,2.00386131,88185.0,88184.0,0.11343954]
[1766299922444,1.47578037,88185.0,88184.0,0.11343954]
[1766299930036,1.47664711,88185.0,88184.0,0.11343954]
[1766299932158,0.85542051,88185.0,88184.0,0.11343954]
[1766299933185,0.8513629,88185.0,88184.0,0.11343954]
[1766299933386,0.84730529,88185.0,88184.0,0.11343954]
[1766299934905,0.84229393,88185.0,88184.0,0.11343954]
[1766299936092,0.84229393,88185.0,88184.0,0.05673992]
[1766299936306,0.84229393,88185.0,88184.0,0.11343954]
[1766299941438,0.16314,88201.0,88190.0,2.82041607]
[1766299941646,0.16314,88201.0,88191.0,0.00513]
[1766299942054,0.16314,88201.0,88191.0,0.00458]
[1766299948707,0.16374,88204.0,88191.0,0.01591902]
[1766299948926,0.198,88207.0,88194.0,0.31722899]
[1766299949144,0.198,88207.0,88191.0,0.00458]
[1766299949980,0.198,88207.0,88197.0,0.31722899]
[1766299950189,0.22879,88211.0,88198.0,0.00568]
[1766299950392,0.198,88210.0,88198.0,0.00568]
[1766299951218,0.198,88209.0,88198.0,0.00568]
[1766299951395,0.00568,88213.0,88198.0,0.00568]
[1766299951396,0.00568,88213.0,88198.0,0.01701812]
[1766299951604,0.22879,88214.0,88198.0,0.00568]
[1766299951799,0.198,88212.0,88198.0,0.00568]
[1766299952008,0.198,88212.0,88198.0,0.01701812]